[Event "CCT Airthings Masters Play-In 2023"]
[Site "Online"]
[Date "2023.02.03"]
[Round "1"]
[White "chesspanda123"]
[Black "Aygehovit"]
[Result "*"]
[ECO "B04"]
[WhiteElo "2613"]
[BlackElo "2439"]
[Annotator "NA"]
[PlyCount "30"]
[EventDate "2023.02.03"]
[EventType "swiss"]
[EventCountry "NET"]
[SourceTitle "playchess.com"]
[Source "ChessBase"]
[SourceQuality "1"]
[TimeControl "600+2"]

1. e4 {[%emt 0:00:05]} d6 {[%emt 0:00:06]} 2. d4 {[%emt 0:00:04]} g6 {[%emt 0:00:02]} 3. Nf3 {[%emt 0:00:03]} Bg7 {[%emt 0:00:02]} 4. Bc4 {[%emt 0:00:04]} Nf6 {[%emt 0:00:03]} 5. Qe2 {[%emt 0:00:02]} c6 {[%emt 0:00:07]} 6. e5 {[%emt 0:00:07]} Nd5 {[%emt 0:00:03]} 7. h3 {[%emt 0:00:08]} O-O {[%emt 0:00:04]} 8. O-O {[%emt 0:00:01]} Be6 {[%emt 0:00:03]} 9. Nbd2 {[%emt 0:01:23]} Nd7 {[%emt 0:00:04]} 10. Re1 {[%emt 0:00:13]} b5 {[%emt 0:00:49]} 11. Bb3 {[%emt 0:00:04]} a5 {[%emt 0:00:35]} 12. a4 {[%emt 0:00:24]} Qb6 {[%emt 0:00:30]} 13. Ne4 {[%emt 0:00:43]} dxe5 {[%emt 0:00:25]} 14. dxe5 {[%emt 0:00:01]} Nc5 {[%emt 0:00:10]} 15. Nxc5 {[%emt 0:00:25]} Qxc5 {[%emt 0:00:00]} *

[Event "CCT Airthings Masters Play-In 2023"]
[Site "Online"]
[Date "2023.02.03"]
[Round "1"]
[White "BilodeauA"]
[Black "Fier, Alexandr"]
[Result "*"]
[ECO "B89"]
[WhiteElo "2609"]
[BlackElo "2606"]
[Annotator "TA"]
[PlyCount "40"]
[EventDate "2023.02.03"]
[EventType "swiss"]
[EventCountry "NET"]
[SourceTitle "playchess.com"]
[Source "ChessBase"]
[SourceQuality "1"]
[TimeControl "600+2"]

{[%evp 16,40,24,35,27,0,15,1,19,-9,11,-4,0,-6,0,-7,0,0,19,29,32,16,152,181,137,-79,-38]} 1. e4 {[%emt 0:00:12]} c5 {[%emt 0:00:06]} 2. Nf3 {[%emt 0:00:03]} d6 {[%emt 0:00:02]} 3. d4 {[%emt 0:00:03]} cxd4 {[%emt 0:00:01]} 4. Nxd4 {[%emt 0:00:00]} Nf6 {[%emt 0:00:01]} 5. Nc3 {[%emt 0:00:01]} Nc6 {[%emt 0:00:01]} 6. Bc4 {[%emt 0:00:09]} e6 {[%emt 0:00:02]} 7. Be3 {[%emt 0:00:01]} a6 {[%emt 0:00:01]} 8. Qe2 {[%emt 0:00:03]} Bd7 {[%emt 0:00:01]} 9. Bb3 {[%emt 0:00:03]} b5 {[%emt 0:00:01] 9...b5 is better than 9...Be7. B89: Sicilian: Velimirovic Attack.} 10. O-O {[%emt 0:00:01]} Be7 {[%emt 0:00:18]} 11. a3 {[%emt 0:00:07]} O-O {[%emt 0:00:04] The position is equal.} 12. Rad1 {[%emt 0:00:01][%cal Ba1d1,Bd1d3,Bd3g3][%mdl 32]} Qc7 {[%emt 0:00:03] [#]} 13. Kh1 $146 {[%emt 0:00:12]} ({Predecessor:} 13. f4 Na5 14. h3 Nxb3 15. cxb3 Rac8 16. b4 Bc6 17. Rc1 Qb7 18. Nxc6 Rxc6 19. Rce1 {1-0 Vera Irala,C (1795)-Cardoso,L (1341) Florianopolis op 8th 2022 (6)}) 13... Na5 {[%emt 0:00:05]} 14. Ba2 {[%emt 0:00:23]} Rac8 {[%emt 0:00:02]} 15. f4 {[%emt 0:00:13]} Nc4 {[%emt 0:00:03]} 16. Bc1 {[%emt 0:00:09][%cal Oe4e5]} Qb8 {[%emt 0:00:41]} 17. Rd3 {[%emt 0:00:56]} Rfe8 {[%emt 0:00:17]} 18. Rg3 {[%emt 0:00:05]} Bf8 {[%emt 0:00:04] [#]} (18... Qb6 $11 19. Rd1 e5 20. fxe5 dxe5) 19. e5 $1 $16 {[%emt 0:00:32][%mdl 512] White is more active.} Nd5 {[%emt 0:00:44] [#]} 20. Nf5 $2 {[%emt 0:00:38]} g6 {[%emt 0:00:30] Weighted Error Value: White=0.29 (precise) /Black=0.25 (precise)} ({Much less strong is} 20... Nxc3 21. Nh6+ Kh8 22. Nxf7+ Kg8 23. Nh6+ Kh8 24. Nf7+ Kg8 25. Nh6+ Kh8 26. bxc3 $16 (26. Nf7+ Kg8 $16)) *

[Event "CCT Airthings Masters Play-In 2023"]
[Site "Online"]
[Date "2023.02.03"]
[Round "1"]
[White "Shield12"]
[Black "Azeryahu"]
[Result "*"]
[ECO "C70"]
[WhiteElo "2604"]
[BlackElo "2423"]
[Annotator "NA"]
[PlyCount "33"]
[EventDate "2023.02.03"]
[EventType "swiss"]
[EventCountry "NET"]
[SourceTitle "playchess.com"]
[Source "ChessBase"]
[SourceQuality "1"]
[TimeControl "600+2"]

1. e4 {[%emt 0:00:03]} e5 {[%emt 0:00:18]} 2. Nf3 {[%emt 0:00:03]} Nc6 {[%emt 0:00:28]} 3. Bb5 {[%emt 0:00:02]} a6 {[%emt 0:00:07]} 4. Ba4 {[%emt 0:00:01]} Nge7 {[%emt 0:00:12]} 5. d4 {[%emt 0:00:02]} exd4 {[%emt 0:00:50]} 6. Nxd4 {[%emt 0:00:00]} Nxd4 {[%emt 0:00:01]} 7. Qxd4 {[%emt 0:00:02]} Nc6 {[%emt 0:00:00]} 8. Qd3 {[%emt 0:00:01]} Bc5 {[%emt 0:00:09]} 9. O-O {[%emt 0:00:05]} O-O {[%emt 0:01:13]} 10. Nc3 {[%emt 0:00:03]} d6 {[%emt 0:00:16]} 11. Bxc6 {[%emt 0:00:40]} bxc6 {[%emt 0:00:01]} 12. Be3 {[%emt 0:00:00]} Bxe3 {[%emt 0:01:10]} 13. Qxe3 {[%emt 0:00:00]} Re8 {[%emt 0:00:07]} 14. Rad1 {[%emt 0:00:03]} Qe7 {[%emt 0:00:18]} 15. Rfe1 {[%emt 0:00:20]} Be6 {[%emt 0:00:15]} 16. h3 {[%emt 0:00:14]} f6 {[%emt 0:00:04]} 17. Qd4 {[%emt 0:00:20]} *

[Event "CCT Airthings Masters Play-In 2023"]
[Site "Online"]
[Date "2023.02.03"]
[Round "1"]
[White "TigrVShlyape"]
[Black "Flores, Diego"]
[Result "*"]
[ECO "A48"]
[WhiteElo "2602"]
[BlackElo "2532"]
[Annotator "TA"]
[PlyCount "51"]
[EventDate "2023.02.03"]
[EventType "swiss"]
[EventCountry "NET"]
[SourceTitle "playchess.com"]
[Source "ChessBase"]
[SourceQuality "1"]
[TimeControl "600+2"]

{[%evp 9,51,0,0,0,3,0,0,-14,12,0,4,17,30,17,25,34,52,29,21,16,20,33,46,20,27,21,21,22,22,18,22,15,16,15,17,0,0,0,0,0,0,-2,-4,-23]} 1. d4 {[%emt 0:00:19]} Nf6 {[%emt 0:00:08]} 2. Bf4 {[%emt 0:00:05]} g6 {[%emt 0:00:18]} 3. c3 {[%emt 0:00:15]} Bg7 {[%emt 0:00:04]} 4. Nf3 {[%emt 0:00:13]} b6 {[%emt 0:00:01]} 5. h3 {[%emt 0:00:05]} Bb7 {[%emt 0:00:01]} 6. Nbd2 {[%emt 0:00:01] A48: 1 d4 Nf6 2 Nf3 g6: Torre, London and Colle Systems.} d6 {[%emt 0:00:08]} 7. e3 {[%emt 0:00:02]} Nbd7 {[%emt 0:00:02]} 8. a4 {[%emt 0:00:03]} a5 {[%emt 0:00:13]} 9. Bb5 {[%emt 0:00:02]} O-O {[%emt 0:00:05]} 10. O-O {[%emt 0:00:03]} Ne4 {[%emt 0:00:12]} 11. Nxe4 {[%emt 0:00:14]} Bxe4 {[%emt 0:00:00] [#]} 12. Re1 $146 {[%emt 0:00:04]} ({Predecessor:} 12. Bh2 Bb7 13. Re1 Nf6 14. Bd3 Ne4 15. Qc2 f5 16. b4 e6 17. Qb3 Qd7 18. Bc4 {1-0 Kamsky,G (2674)-Albornoz Cabrera,C (2573) Titled Tuesday intern op 26th May blitz 2020 (6)}) 12... h6 {[%emt 0:00:23]} 13. Nd2 {[%emt 0:00:08]} Bb7 {[%emt 0:00:02]} 14. e4 {[%emt 0:00:02]} e5 {[%emt 0:00:17]} 15. Be3 {[%emt 0:00:03]} Nf6 {[%emt 0:00:26][%cal Bd7f6,Bf6h5,Bh5f4][%mdl 32]} 16. dxe5 {[%emt 0:00:05]} dxe5 {[%emt 0:00:05]} 17. f3 {[%emt 0:00:26]} Qe7 {[%emt 0:00:13] The position is equal.} 18. Qc2 {[%emt 0:00:18][%cal Ob2b4]} Nh5 {[%emt 0:00:05]} 19. Rad1 {[%emt 0:00:20]} Nf4 {[%emt 0:00:09]} 20. Nf1 {[%emt 0:00:05]} Rad8 {[%emt 0:00:13] Against Rd7} 21. Kh2 {[%emt 0:00:04]} h5 {[%emt 0:00:02]} 22. Rxd8 {[%emt 0:00:20]} Rxd8 {[%emt 0:00:03]} 23. Rd1 {[%emt 0:00:01]} Ne6 {[%emt 0:00:30]} 24. Rxd8+ {[%emt 0:00:04]} Qxd8 {[%emt 0:00:02]} 25. Qd2 {[%emt 0:00:16]} Qxd2 {[%emt 0:00:03]} 26. Nxd2 {[%emt 0:00:02] Weighted Error Value: White=0.05 (flawless) /Black=0.04 (flawless)} *

[Event "CCT Airthings Masters Play-In 2023"]
[Site "Online"]
[Date "2023.02.03"]
[Round "1"]
[White "vi_pranav"]
[Black "adotand"]
[Result "*"]
[ECO "C78"]
[WhiteElo "2600"]
[BlackElo "2376"]
[Annotator "TA"]
[PlyCount "34"]
[EventDate "2023.02.03"]
[EventType "swiss"]
[EventCountry "NET"]
[SourceTitle "playchess.com"]
[Source "ChessBase"]
[SourceQuality "1"]
[TimeControl "600+2"]

{[%evp 15,34,12,13,0,18,0,7,0,7,0,10,0,21,7,7,16,35,0,0,-40,-14]} 1. e4 {[%emt 0:00:08]} e5 {[%emt 0:00:03]} 2. Nf3 {[%emt 0:00:01]} Nc6 {[%emt 0:00:01]} 3. Bb5 {[%emt 0:00:01][%cal Bf1b5,Bb5a4,Ba4b3][%mdl 32]} a6 {[%emt 0:00:01]} 4. Ba4 {[%emt 0:00:01]} Nf6 {[%emt 0:00:02]} 5. O-O {[%emt 0:00:01]} Bc5 {[%emt 0:00:01]} 6. d3 {[%emt 0:00:28]} b5 {[%emt 0:00:10]} 7. Bb3 {[%emt 0:00:00]} d6 {[%emt 0:00:02]} 8. c3 {[%emt 0:00:02]} O-O {[%emt 0:00:12]} 9. Nbd2 {[%emt 0:00:05][%cal Bb1d2,Bd2f1,Bf1g3][%mdl 32] C78: Ruy Lopez: Archangelsk and Möller Defences.} Bb6 {[%emt 0:00:07]} 10. h3 {[%emt 0:00:05] 10.h3 is better than 10.Re1.} Ne7 {[%emt 0:00:06]} 11. Re1 {[%emt 0:00:17] The position is equal.} Ng6 {[%emt 0:00:19][%cal Oc8h3]} 12. Nf1 {[%emt 0:00:06]} h6 {[%emt 0:00:04]} 13. Ng3 {[%emt 0:00:09]} Re8 {[%emt 0:00:06]} 14. a4 {[%emt 0:00:09]} Bb7 {[%emt 0:00:11]} 15. Nh2 {[%emt 0:01:15]} d5 {[%emt 0:01:17] [#]} 16. Qf3 $146 {[%emt 0:00:06]} ({Predecessor:} 16. Ng4 Kh7 17. Qf3 Nxg4 18. hxg4 Nh4 19. Qe2 Kg8 20. Be3 d4 21. Bd2 dxc3 22. bxc3 {1-0 Ivic,V (2625)-Reuker,J (2435) BL2-Nord 2122 2022 (3.1)}) 16... c5 {[%emt 0:00:11]} 17. Bc2 {[%emt 0:00:43]} Nh4 {[%emt 0:00:50] An uneventful encounter.   Weighted Error Value: White=0.13 (very precise) /Black=0.08 (flawless)} *

[Event "CCT Airthings Masters Play-In 2023"]
[Site "Online"]
[Date "2023.02.03"]
[Round "1"]
[White "Puranik, Abhimanyu"]
[Black "severomorskij"]
[Result "*"]
[ECO "B83"]
[WhiteElo "2596"]
[BlackElo "2491"]
[Annotator "TA"]
[PlyCount "38"]
[EventDate "2023.02.03"]
[EventType "swiss"]
[EventCountry "NET"]
[SourceTitle "playchess.com"]
[Source "ChessBase"]
[SourceQuality "1"]
[TimeControl "600+2"]

{[%evp 16,38,16,9,36,0,2,-6,0,0,0,-19,0,-12,0,-20,0,-57,-59,-53,-77,-78,-42,-57,-45]} 1. e4 {[%emt 0:00:05]} c5 {[%emt 0:00:05]} 2. Nf3 {[%emt 0:00:02]} e6 {[%emt 0:01:01]} 3. d4 {[%emt 0:00:07]} cxd4 {[%emt 0:00:03]} 4. Nxd4 {[%emt 0:00:02]} Nf6 {[%emt 0:00:05]} 5. Nc3 {[%emt 0:00:16]} Nc6 {[%emt 0:00:02]} 6. a3 {[%emt 0:00:04]} d6 {[%emt 0:00:02]} 7. Be2 {[%emt 0:00:02]} Be7 {[%emt 0:00:01]} 8. O-O {[%emt 0:00:02]} O-O {[%emt 0:00:01]} 9. Be3 {[%emt 0:00:02]} Bd7 {[%emt 0:00:10] 9...e5 is setting a new trend. B83: Sicilian Scheveningen: 6 Be2, lines without ...a6.} 10. Kh1 {[%emt 0:00:15]} Nxd4 {[%emt 0:00:08]} 11. Qxd4 {[%emt 0:00:03]} Bc6 {[%emt 0:00:00] The position is equal.} 12. f4 {[%emt 0:00:08] [#]} Qc7 $146 {[%emt 0:00:27]} ({Predecessor:} 12... a6 13. Bf3 Rc8 14. Rad1 Qc7 15. g4 Rfd8 16. g5 d5 17. e5 Ne4 18. Bxe4 dxe4 19. Qc4 b5 {0-1 Pihlajamaki,A-Veingold,A (2425) Espoo We ESK op 1996 (1)}) 13. Qd3 {[%emt 0:00:10]} a6 {[%emt 0:00:10]} 14. Bf3 {[%emt 0:00:06]} b5 {[%emt 0:00:06]} 15. Rae1 {[%emt 0:00:06]} Rab8 {[%emt 0:00:23]} 16. b4 {[%emt 0:00:42]} (16. f5 $11) 16... Rbc8 $15 {[%emt 0:00:41]} 17. Ne2 {[%emt 0:00:24]} Ba8 {[%emt 0:00:16]} 18. Nd4 {[%emt 0:00:05]} Qc3 {[%emt 0:00:16]} 19. Bd2 {[%emt 0:00:14]} Qc4 {[%emt 0:00:26] Weighted Error Value: White=0.17 (very precise) /Black=0.11 (very precise)} *

[Event "CCT Airthings Masters Play-In 2023"]
[Site "Online"]
[Date "2023.02.03"]
[Round "1"]
[White "Msb2"]
[Black "GasconJR"]
[Result "1-0"]
[ECO "E92"]
[WhiteElo "2591"]
[BlackElo "2373"]
[Annotator "TA"]
[PlyCount "59"]
[EventDate "2023.02.03"]
[EventType "swiss"]
[EventCountry "NET"]
[SourceTitle "playchess.com"]
[Source "ChessBase"]
[SourceQuality "1"]
[TimeControl "600+2"]

{[%evp 28,38,14,3,2,0,129,147,331,340,358,343,343]} 1. d4 {[%emt 0:00:03]} Nf6 {[%emt 0:00:05]} 2. c4 {[%emt 0:00:02]} g6 {[%emt 0:00:01]} 3. Nc3 {[%emt 0:00:01]} Bg7 {[%emt 0:00:02]} 4. e4 {[%emt 0:00:01]} d6 {[%emt 0:00:01]} 5. Nf3 {[%emt 0:00:01]} O-O {[%emt 0:00:01]} 6. Be2 {[%emt 0:00:01]} e5 {[%emt 0:00:01]} 7. Be3 {[%emt 0:00:00]} exd4 {[%emt 0:00:04]} 8. Nxd4 {[%emt 0:00:01]} Re8 {[%emt 0:00:03]} 9. f3 {[%emt 0:00:01]} c6 {[%emt 0:00:01]} 10. Qd2 {[%emt 0:00:00]} d5 {[%emt 0:00:04]} 11. exd5 {[%emt 0:00:01]} cxd5 {[%emt 0:00:01]} 12. O-O {[%emt 0:00:01]} Nc6 {[%emt 0:00:16]} 13. Rad1 {[%emt 0:00:04]} Nxd4 {[%emt 0:00:59]} 14. Bxd4 {[%emt 0:00:00]} dxc4 {[%emt 0:00:08]} 15. Bxc4 {[%emt 0:00:00]} Be6 {[%emt 0:00:24] E92: King's Indian: Classical: 6 Be2 e5: 7 dxe5, 7 Be3 and Petrosian System without 7...Nbd7.} 16. Bb5 {[%emt 0:00:02]} Re7 {[%emt 0:00:34]} (16... Rf8 $1 $11) 17. Qf2 $16 {[%emt 0:00:02] [#] And now Bxf6 would win. White is more active.} Qa5 $2 {[%emt 0:00:43]} (17... Rc7 $16) 18. Qh4 $18 {[%emt 0:00:03]} Rc7 {[%emt 0:03:11]} 19. Bxf6 {[%emt 0:00:15]} Rxc3 {[%emt 0:00:01] [#] Black got outplayed after the opening.   Weighted Error Value: White=0.00 (flawless) /Black=0.77} {Predecessor:} 20. Bxc3 $146 Bxc3 21. bxc3 Qxb5 22. Rd8+ Rxd8 23. Qxd8+ Kg7 24. Qd4+ Kg8 25. Qxa7 b6 26. Qa8+ Kg7 27. Qa3 Qe2 28. Ra1 b5 29. Qa7 h5 30. Qf2 {1-0 Stojanovic,M (2355)-Carnic,S (2320) YUG-ch sf Nis 1995} 1-0

[Event "CCT Airthings Masters Play-In 2023"]
[Site "Online"]
[Date "2023.02.03"]
[Round "1"]
[White "jcibarra"]
[Black "VitaliyBernadskiy"]
[Result "*"]
[ECO "C47"]
[WhiteElo "2590"]
[BlackElo "2372"]
[Annotator "TA"]
[PlyCount "36"]
[EventDate "2023.02.03"]
[EventType "swiss"]
[EventCountry "NET"]
[SourceTitle "playchess.com"]
[Source "ChessBase"]
[SourceQuality "1"]
[TimeControl "600+2"]

{[%evp 9,23,4,16,21,10,6,13,16,18,17,8,-4,0,-29,-27,-25]} 1. e4 {[%emt 0:00:05]} e5 {[%emt 0:00:28]} 2. Nf3 {[%emt 0:00:03]} Nc6 {[%emt 0:00:01]} 3. Nc3 {[%emt 0:00:01]} Nf6 {[%emt 0:00:02]} 4. h3 {[%emt 0:00:01]} Bc5 {[%emt 0:00:44]} 5. Nxe5 {[%emt 0:00:03]} Nxe5 {[%emt 0:00:03]} 6. d4 {[%emt 0:00:03] C47: Scotch Four Knights and Four Knights with 4 g3.} Bd6 {[%emt 0:00:06][%cal Bc5d6,Bd6e5,Be5d4][%mdl 32]} 7. dxe5 {[%emt 0:00:03]} Bxe5 {[%emt 0:00:01]} 8. Bd3 {[%emt 0:00:01] The position is equal.} O-O {[%emt 0:00:37]} 9. O-O {[%emt 0:00:03]} Re8 {[%emt 0:00:13]} 10. Re1 {[%emt 0:00:52]} d6 {[%emt 0:00:42]} 11. f4 {[%emt 0:01:49]} Bd4+ {[%emt 0:00:17]} 12. Kf1 {[%emt 0:00:01] [#] A rather calm draw.   Weighted Error Value: White=0.09 (flawless) /Black=0.01 (flawless)} {Predecessor:} Bd7 $146 13. Ne2 Bb6 14. Ng3 Ng4 15. hxg4 Qh4 16. f5 Qxg3 17. Qf3 Qe5 18. c3 Bc6 {1-0 Van Gool,H (2180)-Monteban,M (2234) Amsterdam ACT op 1st 2004 (3)} *

[Event "CCT Airthings Masters Play-In 2023"]
[Site "Online"]
[Date "2023.02.03"]
[Round "1"]
[White "shimastream"]
[Black "SalgadoChess91"]
[Result "*"]
[ECO "C13"]
[WhiteElo "2587"]
[BlackElo "2344"]
[Annotator "NA"]
[PlyCount "36"]
[EventDate "2023.02.03"]
[EventType "swiss"]
[EventCountry "NET"]
[SourceTitle "playchess.com"]
[Source "ChessBase"]
[SourceQuality "1"]
[TimeControl "600+2"]

1. e4 {[%emt 0:00:06]} e6 {[%emt 0:00:06]} 2. d4 {[%emt 0:00:09]} d5 {[%emt 0:00:02]} 3. Nc3 {[%emt 0:00:00]} Nf6 {[%emt 0:00:04]} 4. Bg5 {[%emt 0:00:12]} dxe4 {[%emt 0:00:19]} 5. Nxe4 {[%emt 0:00:04]} Be7 {[%emt 0:00:02]} 6. Nxf6+ {[%emt 0:00:04]} Bxf6 {[%emt 0:00:03]} 7. Bxf6 {[%emt 0:00:00]} Qxf6 {[%emt 0:00:02]} 8. Nf3 {[%emt 0:00:01]} O-O {[%emt 0:00:07]} 9. Qd3 {[%emt 0:00:07]} Rd8 {[%emt 0:00:04]} 10. O-O-O {[%emt 0:00:04]} c5 {[%emt 0:00:06]} 11. Qe4 {[%emt 0:00:01]} Nc6 {[%emt 0:00:40]} 12. Bd3 {[%emt 0:00:19]} Qh6+ {[%emt 0:00:07]} 13. Kb1 {[%emt 0:00:02]} cxd4 {[%emt 0:00:02]} 14. h4 {[%emt 0:00:48]} Bd7 {[%emt 0:00:35]} 15. g4 {[%emt 0:00:37]} Qg6 {[%emt 0:00:07]} 16. Qe2 {[%emt 0:00:26]} Qxg4 {[%emt 0:00:07]} 17. Bxh7+ {[%emt 0:01:01]} Kf8 {[%emt 0:00:05]} 18. Rhg1 {[%emt 0:00:38]} Qf4 {[%emt 0:00:04]} *

[Event "CCT Airthings Masters Play-In 2023"]
[Site "Online"]
[Date "2023.02.03"]
[Round "1"]
[White "Cayse"]
[Black "hissha"]
[Result "*"]
[ECO "C42"]
[WhiteElo "2583"]
[BlackElo "2292"]
[Annotator "TA"]
[PlyCount "39"]
[EventDate "2023.02.03"]
[EventType "swiss"]
[EventCountry "NET"]
[SourceTitle "playchess.com"]
[Source "ChessBase"]
[SourceQuality "1"]
[TimeControl "600+2"]

{[%evp 14,39,25,24,20,26,30,30,36,28,28,10,25,25,25,25,30,25,17,12,20,0,12,8,10,7,0,0]} 1. e4 {[%emt 0:00:06]} e5 {[%emt 0:00:06]} 2. Nf3 {[%emt 0:00:02][%cal Bg1f3,Bf3e5,Be5d3][%mdl 32]} Nf6 {[%emt 0:00:03]} 3. Nc3 {[%emt 0:00:02]} Bb4 {[%emt 0:00:05]} 4. Nxe5 {[%emt 0:00:05]} O-O {[%emt 0:00:04]} 5. Be2 {[%emt 0:00:08]} Re8 {[%emt 0:00:07]} 6. Nd3 {[%emt 0:00:02]} Bxc3 {[%emt 0:00:05]} 7. dxc3 {[%emt 0:00:00]} Nxe4 {[%emt 0:00:03]} 8. O-O {[%emt 0:00:02]} d6 {[%emt 0:00:05] C42: Petroff Defence: 3 Nxe5 and unusual White 3rd moves.} 9. f3 {[%emt 0:00:24]} Nf6 {[%emt 0:00:10]} 10. Bg5 {[%emt 0:00:50][%cal Bc1g5,Bg5h4,Bh4f2,Bf2d4][%mdl 32]} h6 {[%emt 0:00:11] White has an edge.} 11. Bh4 {[%emt 0:00:04]} Nbd7 {[%emt 0:00:15][%cal Bb8d7,Bd7f8,Bf8g6][%mdl 32]} 12. Qd2 {[%emt 0:00:08]} Nf8 {[%emt 0:00:32]} 13. Rfe1 {[%emt 0:00:09]} Ng6 {[%emt 0:00:08]} 14. Bf2 {[%emt 0:00:04]} b6 {[%emt 0:00:39] [#]} 15. Bf1 $146 {[%emt 0:00:33]} ({Predecessor:} 15. Nf4 Ne5 16. c4 a5 17. Nd5 Nxd5 18. cxd5 Ba6 19. Bxa6 Rxa6 20. Re4 Ng6 21. Rae1 Rxe4 22. Rxe4 {½-½ Veinger,I-Pokrovsky,N URS-chT corr 1973}) 15... Bb7 {[%emt 0:00:08]} 16. c4 {[%emt 0:00:02] The position is equal.} Qd7 {[%emt 0:00:31]} 17. b3 {[%emt 0:00:02]} Rxe1 {[%emt 0:00:12]} 18. Rxe1 {[%emt 0:00:03]} Re8 {[%emt 0:00:04]} 19. Bd4 {[%emt 0:00:31]} Rxe1 {[%emt 0:00:13]} 20. Qxe1 {[%emt 0:00:03] Weighted Error Value: White=0.04 (flawless) /Black=0.04 (flawless)} *

[Event "CCT Airthings Masters Play-In 2023"]
[Site "Online"]
[Date "2023.02.03"]
[Round "1"]
[White "Antipov_Mikhail_Al"]
[Black "Rodalquilar"]
[Result "*"]
[ECO "C54"]
[WhiteElo "2576"]
[BlackElo "2271"]
[Annotator "TA"]
[PlyCount "38"]
[EventDate "2023.02.03"]
[EventType "swiss"]
[EventCountry "NET"]
[SourceTitle "playchess.com"]
[Source "ChessBase"]
[SourceQuality "1"]
[TimeControl "600+2"]

{[%evp 12,38,6,20,9,0,8,0,2,-12,10,-2,-9,0,24,11,16,26,25,31,43,41,64,60,67,65,72,55,58]} 1. e4 {[%emt 0:00:03]} e5 {[%emt 0:00:05]} 2. Nf3 {[%emt 0:00:02]} Nc6 {[%emt 0:00:01]} 3. Bc4 {[%emt 0:00:05]} Bc5 {[%emt 0:00:01]} 4. d3 {[%emt 0:00:03]} Nf6 {[%emt 0:00:07]} 5. Nbd2 {[%emt 0:00:01]} d6 {[%emt 0:00:13]} 6. O-O {[%emt 0:00:01]} O-O {[%emt 0:00:07]} 7. c3 {[%emt 0:00:02]} a5 {[%emt 0:00:02] C54: Giuoco Piano: 4 c3 Nf6, main lines with 5 d4 and 5 d3.} 8. h3 {[%emt 0:00:04]} h6 {[%emt 0:00:02]} 9. Bb3 {[%emt 0:00:13]} Be6 {[%emt 0:00:16] The position is equal.} 10. Ba4 {[%emt 0:00:01] [#]} Nd7 $146 {[%emt 0:00:11]} ({Predecessor:} 10... Ba7 11. Re1 Ne7 12. Nf1 Ng6 13. d4 c6 14. Ng3 Re8 15. Bc2 b5 16. Be3 Qc7 {1-0 Onischuk,V (2603)-Martirosyan,H (2656) Lindores Abbey Blitz Tal Memorial 2021 (12.2)}) 11. Nb3 {[%emt 0:00:22]} Bb6 {[%emt 0:00:08]} 12. d4 {[%emt 0:00:02] [#] d5 would be deadly.} Bc4 {[%emt 0:01:25]} 13. Re1 {[%emt 0:00:01]} f5 {[%emt 0:00:01]} 14. exf5 {[%emt 0:00:43]} Rxf5 {[%emt 0:00:07]} 15. Be3 {[%emt 0:00:01]} Rf8 {[%emt 0:01:42]} 16. Nbd2 {[%emt 0:00:28]} Bf7 {[%emt 0:00:06]} 17. Bxc6 {[%emt 0:00:12]} bxc6 {[%emt 0:00:01]} 18. dxe5 {[%emt 0:00:01]} dxe5 {[%emt 0:00:23]} 19. Bxb6 {[%emt 0:00:02]} cxb6 {[%emt 0:00:00] Weighted Error Value: White=0.04 (flawless) /Black=0.11 (very precise)} *

[Event "CCT Airthings Masters Play-In 2023"]
[Site "Online"]
[Date "2023.02.03"]
[Round "1"]
[White "platy3"]
[Black "SharapovEvgeny"]
[Result "*"]
[ECO "B63"]
[WhiteElo "2572"]
[BlackElo "2130"]
[Annotator "TA"]
[PlyCount "44"]
[EventDate "2023.02.03"]
[EventType "swiss"]
[EventCountry "NET"]
[SourceTitle "playchess.com"]
[Source "ChessBase"]
[SourceQuality "1"]
[TimeControl "600+2"]

{[%evp 21,44,40,48,43,77,77,59,44,58,58,43,46,68,60,58,41,50,29,32,27,36,0,7,0,0]} 1. e4 {[%emt 0:00:04] Gofshtein,Leonid D} c5 {[%emt 0:00:44]} 2. Nf3 {[%emt 0:00:05]} d6 {[%emt 0:00:02]} 3. d4 {[%emt 0:00:04]} cxd4 {[%emt 0:00:01]} 4. Nxd4 {[%emt 0:00:00]} Nf6 {[%emt 0:00:01]} 5. Nc3 {[%emt 0:00:01]} Nc6 {[%emt 0:00:02]} 6. Bg5 {[%emt 0:00:04]} e6 {[%emt 0:00:01]} 7. Qd2 {[%emt 0:00:10]} Be7 {[%emt 0:00:01]} 8. O-O-O {[%emt 0:00:04]} O-O {[%emt 0:00:02]} 9. h4 {[%emt 0:00:07]} Nxd4 {[%emt 0:00:06]} 10. Qxd4 {[%emt 0:00:02]} Qa5 {[%emt 0:00:02]} 11. f3 {[%emt 0:00:36]} a6 {[%emt 0:00:20]} 12. Bd2 {[%emt 0:00:12][%cal Oc3d5] Strongly threatening Nd5! B63: Sicilian: Richter-Rauzer: 7...Be7 and unusual Black 7th moves.} Qc5 {[%emt 0:00:06] Repels Nd5} 13. Qxc5 {[%emt 0:01:53]} dxc5 {[%emt 0:00:03] [#]} 14. e5 $146 {[%emt 0:00:35] White is slightly better.} ({Predecessor:} 14. h5 h6 15. a4 b6 16. Bf4 Rd8 17. Bd3 b5 18. axb5 axb5 19. Bxb5 Ra1+ 20. Nb1 Rxd1+ 21. Rxd1 Nxh5 {1-0 Smirin,I (2677)-Gershon,A (2502) EU-ch 1st Saint Vincent 2000 (6)}) 14... Nd5 {[%emt 0:00:06]} 15. Nxd5 {[%emt 0:00:21]} exd5 {[%emt 0:00:03]} 16. Bg5 {[%emt 0:00:00]} Bxg5+ {[%emt 0:00:12]} 17. hxg5 {[%emt 0:00:00]} Be6 {[%emt 0:00:02]} 18. Bd3 {[%emt 0:00:02]} g6 {[%emt 0:00:02]} 19. Rh6 {[%emt 0:00:07]} Kg7 $1 {[%emt 0:00:03] Black is weak on the dark squares} 20. Rdh1 {[%emt 0:00:04]} Rh8 {[%emt 0:00:02]} 21. c3 {[%emt 0:00:01]} Rad8 {[%emt 0:00:24]} 22. R1h4 {[%emt 0:00:03]} d4 {[%emt 0:00:16] Weighted Error Value: White=0.10 (very precise) /Black=0.10 (very precise)} *